fUST/lending_fUST_20251231
["ID","MTS","AMOUNT","RATE_DAILY","PERIOD"]
[400122567,1767136242446,-1000.0,0.00014247,2]
[400122568,1767136242455,-1000.0,0.00014247,2]
[400122569,1767136242464,-1000.0,0.00014247,2]
[400122570,1767136242474,-609.01134723,0.00014247,2]
[400122571,1767136242483,-1000.0,0.00014247,2]
[400122572,1767136242493,-1000.0,0.00014247,2]
[400122573,1767136242502,-1000.6,0.00014247,2]
[400122574,1767136242511,-1000.0,0.00014247,2]
[400122575,1767136242521,-1000.0,0.00014247,2]
[400122576,1767136242531,-1000.0,0.00014247,2]
[400122577,1767136242544,-1000.0,0.00014247,2]
[400122578,1767136242556,-500.23104155,0.00014247,2]
[400122579,1767136242566,-1000.0,0.00014247,2]
[400122580,1767136242578,-500.29842762,0.00014247,2]
[400122581,1767136242588,-1000.0,0.00014247,2]
[400122582,1767136242600,-1000.0,0.00014247,2]
[400122583,1767136242619,-1000.0,0.00014247,2]
[400122584,1767136242630,-1000.0,0.00014247,2]
[400122585,1767136242643,-1000.0,0.00014247,2]
[400122586,1767136242654,-1000.0,0.00014247,2]
[400122587,1767136242664,-1000.0,0.00014247,2]
[400122588,1767136242676,-1140.95305327,0.00014247,2]
[400122589,1767136242687,-439.78725339,0.00014247,2]
[400122590,1767136242698,-1000.0,0.00014247,2]
[400122591,1767136242708,-500.49105905,0.00014247,2]
[400122592,1767136242720,-1000.0,0.00014247,2]
[400122593,1767136242730,-1000.0,0.00014247,2]
[400122594,1767136242741,-1000.0,0.00014247,2]
[400122595,1767136242750,-1000.0,0.00014247,2]
[400122596,1767136242760,-1000.0,0.00014247,2]
[400122597,1767136242776,-1000.0,0.00014247,2]
[400122598,1767136242786,-1000.0,0.00014247,2]
[400122599,1767136242796,-1000.0,0.00014247,2]
[400122600,1767136242805,-1000.0,0.00014247,2]
[400122601,1767136242817,-841.76077155,0.00014247,2]
[400122602,1767136242827,-1000.0,0.00014247,2]
[400122603,1767136242837,-1000.0,0.00014247,2]
[400122604,1767136242847,-1000.0,0.00014247,2]
[400122605,1767136242856,-1000.0,0.00014247,2]
[400122606,1767136242866,-1000.0,0.00014247,2]
[400122607,1767136242875,-1000.0,0.00014247,2]
[400122608,1767136242886,-1000.0,0.00014247,2]
[400122609,1767136242895,-1000.0,0.00014247,2]
[400122610,1767136242904,-1000.0,0.00014247,2]
[400122611,1767136242914,-651.45308844,0.00014298,2]
[400122612,1767136242923,-153.0,0.000143,2]
[400122613,1767136242932,-1148.56176986,0.00014368,2]
[400122614,1767136242942,-1500.0,0.00014368,2]
[400122615,1767136242952,-1500.0,0.00014368,2]
[400122616,1767136242961,-1500.0,0.00014368,2]
[400122617,1767136242970,-1500.0,0.00014368,2]
[400122618,1767136242980,-1500.0,0.00014368,2]
[400122619,1767136242989,-543.97913442,0.00014368,2]
[400122620,1767136242999,-608.22992308,0.00014368,2]
[400122621,1767136243008,-491.44055315,0.00014368,2]
[400122622,1767136243019,-1500.0,0.00014368,2]
[400122623,1767136243029,-1182.79236515,0.00014368,2]
[400122624,1767136243038,-1463.64176807,0.00014368,2]
[400122625,1767136243047,-501.17509357,0.00014368,2]
[400122626,1767136243057,-1500.0,0.00014368,2]
[400122627,1767136243066,-1500.0,0.00014368,2]
[400122628,1767136243075,-1500.0,0.00014368,2]
[400122629,1767136243084,-850.60008768,0.00014368,2]
[400122631,1767136243094,-1500.0,0.00014368,2]
[400122633,1767136243103,-1500.0,0.00014368,2]
[400122635,1767136243113,-304.17357408,0.00014368,2]
[400122636,1767136243122,-1500.0,0.00014368,2]
[400122639,1767136243132,-1500.0,0.00014368,2]
[400122640,1767136243142,-1500.0,0.00014368,2]
[400122641,1767136243152,-1500.0,0.00014368,2]
[400122642,1767136243161,-1500.0,0.00014368,2]
[400122643,1767136243171,-1500.0,0.00014368,2]
[400122644,1767136243180,-1500.0,0.00014368,2]
[400122645,1767136243190,-1500.0,0.00014368,2]
[400122646,1767136243199,-1500.0,0.00014368,2]
[400122647,1767136243209,-1500.0,0.00014368,2]
[400122648,1767136243219,-1500.0,0.00014368,2]
[400122649,1767136243230,-153.38433205,0.00014368,2]
[400122650,1767136243239,-1500.0,0.00014368,2]
[400122651,1767136243325,-185.90422745,0.00014368,2]
[400122652,1767136243335,-1500.0,0.00014368,2]
[400122653,1767136243344,-1500.0,0.00014368,2]
[400122654,1767136243354,-1500.0,0.00014368,2]
[400122655,1767136243364,-602.08725068,0.00014368,2]
[400122656,1767136243374,-1500.0,0.00014368,2]
[400122657,1767136243384,-500.0,0.00014428,2]
[400122658,1767136243394,-1183.18785316,0.00014451,2]
[400122659,1767136243403,-720.0,0.0001454,2]
[400122660,1767136243412,-858.27,0.0001455,2]
[400122661,1767136243422,-776.17298313,0.00014755,2]
[400122662,1767136243432,-900.0,0.00014768,2]
[400122663,1767136243442,-1286.09951439,0.00014787,2]
[400122664,1767136243451,-463.12350294,0.00014795,2]
[400122665,1767136243461,-243.7352358,0.00014795,2]
[400122666,1767136243471,-1500.0,0.00014795,2]
[400122667,1767136243480,-523.97056295,0.00014795,2]
[400122668,1767136243491,-1542.67834367,0.00014795,2]
[400122669,1767136243501,-1134.18716453,0.00014795,2]
[400122670,1767136243510,-1500.0,0.00014795,2]
[400122671,1767136243521,-1501.17569243,0.00014795,2]
[400122672,1767136243531,-1500.0,0.00014795,2]
[400122673,1767136243544,-1425.34356303,0.00014795,2]
[400122674,1767136243554,-1500.0,0.00014795,2]
[400122675,1767136243565,-1068.19168824,0.00014795,2]
[400122676,1767136243574,-1077.78102605,0.00014795,2]
[400122677,1767136243587,-689.79380448,0.00014795,2]
[400122678,1767136243597,-1500.0,0.00014795,2]
[400122679,1767136243607,-180.59685977,0.00014795,2]
[400122680,1767136243618,-1500.0,0.00014795,2]
[400122681,1767136243628,-1000.6174752,0.00014795,2]
[400122682,1767136243638,-1500.0,0.00014795,2]
[400122683,1767136243648,-370.21149129,0.00014795,2]
[400122684,1767136243658,-1500.0,0.00014795,2]
[400122685,1767136243668,-1500.0,0.00014795,2]
[400122686,1767136243677,-1000.0,0.00014795,2]
[400122687,1767136243687,-1500.0,0.00014795,2]
[400122688,1767136243697,-1500.0,0.00014795,2]
[400122689,1767136243707,-1500.0,0.00014795,2]
[400122690,1767136243717,-1500.0,0.00014795,2]
[400122691,1767136243726,-1500.67462727,0.00014795,2]
[400122692,1767136243736,-1500.0,0.00014795,2]
[400122693,1767136243745,-656.04876698,0.00014795,2]
[400122694,1767136243755,-1099.79272497,0.00014795,2]
[400122695,1767136243765,-614.47125074,0.00014795,2]
[400122696,1767136243775,-1502.56460974,0.00014795,2]
[400122697,1767136243785,-1500.0,0.00014795,2]
[400122698,1767136243795,-1500.0,0.00014795,2]
[400122699,1767136243805,-1135.30832269,0.00014795,2]
[400122700,1767136243815,-1500.0,0.00014795,2]
[400122701,1767136243824,-1500.0,0.00014795,2]
[400122702,1767136243834,-1500.0,0.00014795,2]
[400122703,1767136243844,-1500.0,0.00014795,2]
[400122704,1767136243854,-501.01146008,0.00014795,2]
[400122705,1767136243863,-1500.0,0.00014795,2]
[400122706,1767136243873,-1500.0,0.00014795,2]
[400122707,1767136243882,-1500.0,0.00014795,2]
[400122708,1767136243892,-1500.0,0.00014795,2]
[400122709,1767136243902,-1516.26229234,0.00014795,2]
[400122710,1767136243912,-1500.0,0.00014795,2]
[400122711,1767136243922,-1500.0,0.00014795,2]
[400122712,1767136243932,-1500.0,0.00014795,2]
[400122713,1767136243941,-1500.0,0.00014795,2]
[400122714,1767136243951,-1633.14052815,0.00014795,2]
[400122715,1767136243961,-1500.0,0.00014795,2]
[400122716,1767136243971,-1500.0,0.00014795,2]
[400122717,1767136243980,-1103.59591982,0.00014795,2]
[400122718,1767136243990,-1500.0,0.00014795,2]
[400122719,1767136244000,-1500.0,0.00014795,2]
[400122720,1767136244010,-1500.0,0.00014795,2]
[400122721,1767136244019,-267.93573715,0.00014831,2]
[400122722,1767136244028,-2000.0,0.00014916,2]
[400122723,1767136244039,-2000.0,0.00014916,2]
[400122724,1767136244048,-1306.02349709,0.00014916,2]
[400122725,1767136244058,-2000.0,0.00014916,2]
[400122726,1767136244068,-345.67383006,0.00014916,2]
[400122727,1767136244077,-2000.0,0.00014916,2]
[400122728,1767136244087,-2000.0,0.00014916,2]
[400122729,1767136244096,-2000.0,0.00014916,2]
[400122730,1767136244105,-2000.0,0.00014916,2]
[400122731,1767136244115,-530.60034306,0.00014916,2]
[400122732,1767136244124,-153.38490748,0.00014916,2]
[400122733,1767136244134,-2000.0,0.00014916,2]
[400122734,1767136244144,-2000.0,0.00014916,2]
[400122735,1767136244153,-578.34432056,0.00014916,2]
[400122736,1767136244163,-153.33728789,0.00014916,2]
[400122737,1767136244172,-1705.87434732,0.00014916,2]
[400122738,1767136244182,-2000.0,0.00014916,2]
[400122739,1767136244191,-2000.0,0.00014916,2]
[400122740,1767136244201,-2000.0,0.00014916,2]
[400122741,1767136244210,-2000.0,0.00014916,2]
[400122742,1767136244219,-2000.0,0.00014916,2]
[400122743,1767136244229,-159.38531226,0.00014916,2]
[400122744,1767136244239,-2000.0,0.00014916,2]
[400122745,1767136244249,-2000.0,0.00014916,2]
[400122746,1767136244259,-923.25808836,0.00014916,2]
[400122747,1767136244269,-2000.0,0.00014916,2]
[400122748,1767136244279,-2000.0,0.00014916,2]
[400122749,1767136244289,-1183.18785316,0.00014968,2]
[400122750,1767136244299,-200.0,0.00015027,2]
[400122751,1767136244308,-100000.0,0.00015028,2]
[400122752,1767136244318,-286.46296752,0.00015049,2]
[400122753,1767136244327,-802.4075812,0.00015068,2]
[400122754,1767136244337,-1029.92,0.00015132,2]
[400122755,1767136244346,-500.0,0.00015187,2]
[400122757,1767136244356,-1200.0,0.00015316,2]
[400122758,1767136244365,-200.0,0.00015341,2]
[400122759,1767136244375,-506.96411666,0.00015342,2]
[400122760,1767136244385,-1002.96369924,0.00015342,2]
[400122761,1767136244394,-1530.49483625,0.00015342,2]
[400122762,1767136244403,-1165.08832195,0.00015342,2]
[400122763,1767136244413,-1998.58986785,0.00015342,2]
[400122764,1767136244423,-652.56560991,0.00015342,2]
[400122765,1767136244432,-1647.98630297,0.00015342,2]
[400122766,1767136244442,-287.73937982,0.00015342,2]
[400122767,1767136244455,-1002.36383556,0.00015342,2]
[400122768,1767136244464,-2000.0,0.00015342,2]
[400122769,1767136244474,-501.93029299,0.00015342,2]
[400122770,1767136244483,-915.38718416,0.00015342,2]
[400122771,1767136244493,-1071.88192211,0.00015342,2]
[400122772,1767136244503,-516.19204284,0.00015342,2]
[400122773,1767136244512,-2000.0,0.00015342,2]
[400122774,1767136244523,-790.36524538,0.00015342,2]
[400122775,1767136244536,-705.08957727,0.00015342,2]
[400122776,1767136244549,-601.9114542,0.00015342,2]
[400122777,1767136244559,-1692.72226134,0.00015342,2]
[400122778,1767136244568,-1296.56856635,0.00015342,2]
[400122779,1767136244579,-1383.55924972,0.00015342,2]
[400122780,1767136244589,-1965.59328005,0.00015342,2]
[400122781,1767136244599,-500.93999528,0.00015342,2]
[400122782,1767136244608,-2000.0,0.00015342,2]
[400122783,1767136244620,-500.74703084,0.00015342,2]
[400122784,1767136244630,-1502.03362733,0.00015342,2]
[400122785,1767136244640,-2000.79867344,0.00015342,2]
[400122786,1767136244650,-2128.34758048,0.00015342,2]
[400122787,1767136244660,-2000.76422099,0.00015342,2]
[400122788,1767136244669,-1501.43570007,0.00015342,2]
[400122789,1767136244679,-501.28240001,0.00015342,2]
[400122790,1767136244689,-501.17963046,0.00015342,2]
[400122791,1767136244699,-2000.0,0.00015342,2]
[400122792,1767136244708,-318.87701711,0.00015464,2]
[400122793,1767136244718,-451.0928214,0.00015464,2]
[400122794,1767136244728,-766.73162538,0.00015464,2]
[400122795,1767136244738,-2500.0,0.00015464,2]
[400122796,1767136244747,-2500.0,0.00015464,2]
[400122797,1767136244757,-2500.0,0.00015464,2]
[400122798,1767136244767,-2500.0,0.00015464,2]
[400122799,1767136244778,-2500.0,0.00015464,2]
[400122800,1767136244788,-2500.0,0.00015464,2]
[400122801,1767136244798,-2500.0,0.00015464,2]
[400122802,1767136244807,-500.81406623,0.00015464,2]
[400122803,1767136244820,-2500.0,0.00015464,2]
[400122804,1767136244829,-268.17522063,0.00015464,2]
[400122805,1767136244838,-2500.0,0.00015464,2]
[400122806,1767136244849,-1692.65496128,0.00015464,2]
[400122807,1767136244858,-2500.0,0.00015464,2]
[400122808,1767136244868,-2500.0,0.00015464,2]
[400122809,1767136244878,-2500.0,0.00015464,2]
[400122810,1767136244887,-587.0,0.00015467,2]
[400122811,1767136244897,-2351.0,0.00015557,2]
[400122812,1767136244906,-1201.58,0.00015714,2]
[400122813,1767136244993,-898.4228942,0.00015864,2]
[400122814,1767136245003,-1302.96487012,0.0001589,2]
[400122815,1767136245013,-2500.0,0.0001589,2]
[400122816,1767136245022,-1511.97065526,0.0001589,2]
[400122817,1767136245032,-2500.0,0.0001589,2]
[400122818,1767136245041,-500.0,0.00015986,2]
[400122819,1767136245051,-864.0,0.00015994,2]
[400122820,1767136245060,-3000.0,0.00016012,2]
[400122821,1767136245069,-3000.0,0.00016012,2]
[400122822,1767136245079,-3000.0,0.00016012,2]
[400122823,1767136245088,-3000.0,0.00016012,2]
[400122824,1767136245098,-2505.03427004,0.00016012,2]
[400122825,1767136245107,-354.66599035,0.00016012,2]
[400122826,1767136245116,-3000.0,0.00016012,2]
[400122827,1767136245126,-3000.0,0.00016012,2]
[400122828,1767136245136,-3000.0,0.00016012,2]
[400122829,1767136245146,-3000.0,0.00016012,2]
[400122830,1767136245156,-3000.0,0.00016012,2]
[400122831,1767136245165,-3000.0,0.00016012,2]
[400122832,1767136245175,-1373.23,0.00016296,2]
[400122833,1767136245184,-500.0,0.00016438,2]
[400122834,1767136245193,-635.37358436,0.00016438,2]
[400122835,1767136245203,-500.0,0.00016438,2]
[400122836,1767136245212,-500.0,0.00016438,2]
[400122837,1767136245221,-500.0,0.00016438,2]
[400122838,1767136245232,-500.0,0.00016438,2]
[400122839,1767136245241,-500.0,0.00016438,2]
[400122840,1767136245250,-500.0,0.00016438,2]
[400122841,1767136245259,-500.0,0.00016438,2]
[400122842,1767136245269,-500.0,0.00016438,2]
[400122843,1767136245278,-500.0,0.00016438,2]
[400122844,1767136245288,-500.0,0.00016438,2]
[400122845,1767136245297,-500.0,0.00016438,2]
[400122846,1767136245307,-3000.0,0.00016438,2]
[400122847,1767136245317,-3000.0,0.00016438,2]
[400122848,1767136245327,-200.0,0.00016473,2]
[400122849,1767136245336,-3075.53869932,0.0001656,2]
[400122850,1767136245346,-338.65201998,0.0001656,2]
[400122851,1767136245355,-3500.0,0.0001656,2]
[400122852,1767136245365,-572.1911069,0.0001656,2]
[400122853,1767136245375,-449.77336015,0.0001656,2]
[400122854,1767136245385,-2567.25525094,0.0001656,2]
[400122855,1767136245395,-3518.30844147,0.0001656,2]
[400122856,1767136245404,-3500.0,0.0001656,2]
[400122857,1767136245414,-3500.0,0.0001656,2]
[400122858,1767136245424,-3500.0,0.0001656,2]
[400122859,1767136245434,-500.0,0.00016828,2]
[400122860,1767136245444,-308.80729028,0.00016831,2]
[400122861,1767136245456,-1544.88,0.00016878,2]
[400122862,1767136245466,-250.0,0.00016918,2]
[400122863,1767136245476,-823.0,0.00016964,2]
[400122864,1767136245498,-3500.0,0.00016986,2]
[400122865,1767136245509,-3500.0,0.00016986,2]
[400122866,1767136245519,-711.20382489,0.00017108,2]
[400122867,1767136245531,-4000.0,0.00017108,2]
[400122868,1767136245545,-4000.0,0.00017108,2]
[400122869,1767136245555,-1007.11670617,0.00017108,2]
[400122870,1767136245565,-3292.0,0.00017112,2]
[400122871,1767136245575,-1716.54,0.0001746,2]
[400122872,1767136245586,-4000.0,0.00017534,2]
[400122873,1767136245597,-4000.0,0.00017534,2]
[400122874,1767136245607,-1000.0,0.00017593,2]
[400122875,1767136245618,-2520.819804,0.00017656,2]
[400122876,1767136245627,-1001.83600632,0.00017656,2]
[400122877,1767136245637,-500.0,0.00017713,2]
[400122878,1767136245647,-47234.64240088,0.000178,3]
[400122879,1767136245658,-278.55403227,0.00017842,2]
[400122880,1767136245668,-1286.09951439,0.00017893,2]
[400122881,1767136245679,-4500.0,0.00018082,2]
[400122882,1767136245689,-2701.00680866,0.00018082,2]
[400122883,1767136245699,-150.0,0.00018087,30]
[400122884,1767136245708,-1152.0,0.00018607,2]
[400122885,1767136245718,-5000.0,0.0001863,2]
[400122886,1767136245728,-500.0,0.00018646,2]
[400122887,1767136245740,-4609.0,0.00018823,2]
[400122888,1767136245750,-349.6788434,0.00018831,2]
[400122889,1767136245759,-302.90913937,0.000189,2]
[400122891,1767136245769,-302.90913937,0.000189,2]
[400122893,1767136245779,-1531.69073689,0.00018928,2]
[400122895,1767136245788,-150.0,0.00018941,30]
[400122896,1767136245798,-302.90913937,0.00019089,2]
[400122897,1767136245808,-302.90913937,0.00019089,2]
[400122898,1767136245817,-500.0,0.00019178,2]
[400122899,1767136245826,-500.0,0.00019178,2]
[400122900,1767136245836,-500.0,0.00019178,2]
[400122901,1767136245846,-500.0,0.00019178,2]
[400122902,1767136245856,-500.0,0.00019178,2]
[400122903,1767136245865,-500.0,0.00019178,2]
[400122904,1767136245875,-500.0,0.00019178,2]
[400122905,1767136245884,-500.0,0.00019178,2]
[400122906,1767136245894,-500.0,0.00019178,2]
[400122907,1767136245904,-500.0,0.00019178,2]
[400122908,1767136245914,-500.0,0.00019178,2]
[400122909,1767136245924,-500.0,0.00019178,2]
[400122910,1767136245935,-500.0,0.00019178,2]
[400122911,1767136245945,-500.0,0.00019178,2]
[400122912,1767136245955,-500.0,0.00019178,2]
[400122913,1767136245966,-500.0,0.00019178,2]
[400122914,1767136245975,-500.0,0.00019178,2]
[400122915,1767136245985,-500.0,0.00019178,2]
[400122916,1767136245994,-500.0,0.00019178,2]
[400122917,1767136246004,-500.0,0.00019178,2]
[400122918,1767136246014,-500.0,0.00019178,2]
[400122919,1767136246023,-500.0,0.00019178,2]
[400122920,1767136246033,-500.0,0.00019178,2]
[400122921,1767136246043,-369.95825721,0.00019178,2]
[400122922,1767136246052,-500.0,0.00019178,2]
[400122923,1767136246068,-500.0,0.00019178,2]
[400122924,1767136246078,-500.0,0.00019178,2]
[400122925,1767136246088,-500.0,0.00019178,2]
[400122926,1767136246098,-500.0,0.00019178,2]
[400122927,1767136246107,-500.0,0.00019178,2]
[400122928,1767136246117,-500.0,0.00019178,2]
[400122929,1767136246126,-500.0,0.00019178,2]
[400122930,1767136246136,-500.0,0.00019178,2]
[400122931,1767136246146,-500.0,0.00019178,2]
[400122932,1767136246155,-500.0,0.00019178,2]
[400122933,1767136246165,-500.0,0.00019178,2]
[400122934,1767136246175,-500.0,0.00019178,2]
[400122935,1767136246184,-500.0,0.00019178,2]
[400122936,1767136246194,-500.0,0.00019178,2]
[400122937,1767136246206,-500.0,0.00019178,2]
[400122938,1767136246215,-500.0,0.00019178,2]
[400122939,1767136246225,-500.0,0.00019178,2]
[400122940,1767136246234,-500.0,0.00019178,2]
[400122941,1767136246243,-500.0,0.00019178,2]
[400122942,1767136246252,-500.0,0.00019178,2]
[400122943,1767136246262,-500.0,0.00019178,2]
[400122944,1767136246271,-500.0,0.00019178,2]
[400122945,1767136246281,-500.0,0.00019178,2]
[400122946,1767136246290,-500.0,0.00019178,2]
[400122947,1767136246299,-500.0,0.00019178,2]
[400122948,1767136246309,-500.0,0.00019178,2]
[400122949,1767136246319,-500.0,0.00019178,2]
[400122951,1767136246328,-294.35577196,0.00019178,2]
[400122952,1767136246337,-500.0,0.00019178,2]
[400122954,1767136246347,-500.0,0.00019178,2]
[400122955,1767136246356,-500.0,0.00019178,2]
[400122957,1767136246366,-500.0,0.00019178,2]
[400122959,1767136246375,-500.0,0.00019178,2]
[400122960,1767136246385,-500.0,0.00019178,2]
[400122962,1767136246395,-500.0,0.00019178,2]
[400122964,1767136246404,-500.0,0.00019178,2]
[400122966,1767136246413,-500.0,0.00019178,2]
[400122967,1767136246423,-500.0,0.00019178,2]
[400122968,1767136246432,-500.0,0.00019178,2]
[400122969,1767136246442,-500.0,0.00019178,2]
[400122970,1767136246542,-500.0,0.00019178,2]
[400122971,1767136246552,-500.0,0.00019178,2]
[400122972,1767136246562,-500.0,0.00019178,2]
[400122973,1767136246572,-500.0,0.00019178,2]
[400122974,1767136246583,-500.0,0.00019178,2]
[400122975,1767136246593,-500.0,0.00019178,2]
[400122976,1767136246603,-500.0,0.00019178,2]
[400122977,1767136246613,-500.0,0.00019178,2]
[400122979,1767136246623,-500.0,0.00019178,2]
[400122981,1767136246632,-500.0,0.00019178,2]
[400122982,1767136246643,-500.0,0.00019178,2]
[400122983,1767136246652,-500.0,0.00019178,2]
[400122984,1767136246662,-500.0,0.00019178,2]
[400122985,1767136246672,-500.0,0.00019178,2]
[400122987,1767136246682,-500.0,0.00019178,2]
[400122988,1767136246692,-500.0,0.00019178,2]
[400122989,1767136246703,-500.0,0.00019178,2]
[400122990,1767136246713,-500.0,0.00019178,2]
[400122991,1767136246724,-500.0,0.00019178,2]
[400122992,1767136246733,-500.0,0.00019178,2]
[400122993,1767136246743,-500.0,0.00019178,2]
[400122994,1767136246752,-500.0,0.00019178,2]
[400122995,1767136246762,-500.0,0.00019178,2]
[400122996,1767136246772,-500.0,0.00019178,2]
[400122997,1767136246782,-500.0,0.00019178,2]
[400122998,1767136246791,-500.0,0.00019178,2]
[400122999,1767136246802,-500.0,0.00019178,2]
[400123000,1767136246811,-500.0,0.00019178,2]
[400123001,1767136246820,-500.0,0.00019178,2]
[400123002,1767136246830,-500.0,0.00019178,2]
[400123003,1767136246839,-500.0,0.00019178,2]
[400123004,1767136246849,-500.0,0.00019178,2]
[400123005,1767136246859,-500.0,0.00019178,2]
[400123006,1767136246868,-500.0,0.00019178,2]
[400123007,1767136246877,-500.0,0.00019178,2]
[400123008,1767136246886,-500.0,0.00019178,2]
[400123009,1767136246896,-500.0,0.00019178,2]
[400123010,1767136246905,-500.0,0.00019178,2]
[400123011,1767136246914,-500.0,0.00019178,2]
[400123012,1767136246924,-500.0,0.00019178,2]
[400123013,1767136246933,-500.0,0.00019178,2]
[400123014,1767136246943,-500.0,0.00019178,2]
[400123015,1767136246952,-500.0,0.00019178,2]
[400123016,1767136246961,-573.66660304,0.00019178,2]
[400123017,1767136246971,-5500.0,0.00019178,2]
[400123018,1767136246980,-150.0,0.00019178,2]
[400123019,1767136246990,-166.34,0.000192,2]
[400123020,1767136247000,-160.02,0.000192,2]
[400123021,1767136247010,-1801.27,0.000192,2]
[400123022,1767136247019,-12898.27,0.000192,2]
[400123023,1767136247029,-164.88,0.000192,2]
[400123024,1767136247039,-302.90913937,0.00019278,2]
[400123025,1767136247048,-302.90913937,0.00019278,2]
[400123026,1767136247057,-300.0,0.00019315,2]
[400123027,1767136247067,-1000.0,0.00019352,2]
[400123028,1767136247077,-244.0,0.00019352,2]
[400123029,1767136247089,-450.0,0.00019452,2]
[400123030,1767136247099,-302.90913937,0.00019467,2]
[400123031,1767136247108,-302.90913937,0.00019467,2]
[400123032,1767136247118,-600.0,0.00019589,2]
[400123033,1767136247127,-500.0,0.00019627,2]
[400123034,1767136247137,-302.90913937,0.00019656,2]
[400123035,1767136247146,-302.90913937,0.00019656,2]
[400123037,1767136247155,-6000.0,0.00019726,2]
[400123038,1767136247165,-556.1484877,0.00019726,2]
[400123039,1767136247175,-220.7,0.00019802,30]
[400123040,1767136247184,-454.36370906,0.00019845,4]
[400123041,1767136247193,-454.36370906,0.00019845,4]
[400123042,1767136247202,-179.30196423,0.0002,2]
[400123043,1767136247211,-210.00651371,0.0002,2]
[400123044,1767136247221,-454.36370906,0.00020034,4]
[400123045,1767136247230,-454.36370906,0.00020034,4]
[400123046,1767136247239,-255.29845615,0.00020172,9]
[400123047,1767136247249,-454.36370906,0.00020223,4]
[400123048,1767136247258,-454.36370906,0.00020223,4]
[400123049,1767136247267,-6500.0,0.00020274,2]
[400123050,1767136247276,-2000.0,0.00020314,7]
[400123051,1767136247286,-1613.0,0.00020409,2]
[400123052,1767136247296,-454.36370906,0.00020412,4]
[400123053,1767136247305,-454.36370906,0.00020412,4]
[400123054,1767136247314,-299.0,0.000205,2]
[400123055,1767136247325,-316.75303399,0.00020601,4]
[400123056,1767136247334,-454.36370903,0.00020601,4]
[400123057,1767136247343,-500.0,0.0002066,2]
[400123058,1767136247352,-294.26,0.00020663,30]
[400123059,1767136247362,-6453.0,0.00020706,2]
[400123060,1767136247372,-204.33745853,0.00020822,2]
[400123061,1767136247381,-390.55039653,0.00020831,2]
[400123062,1767136247390,-1286.09951439,0.00020998,2]
[400123063,1767136247399,-1000.0,0.00021288,10]
[400123064,1767136247409,-492.0,0.00021288,10]
[400123065,1767136247417,-255.29845615,0.00021417,11]
[400123066,1767136247427,-1808.2093343,0.00021512,2]
[400123067,1767136247436,-367.83,0.00021524,30]
[400123068,1767136247445,-1801.27,0.000216,2]
[400123069,1767136247455,-12898.27,0.000216,2]
[400123070,1767136247465,-164.88,0.000216,2]
[400123071,1767136247475,-500.0,0.00021747,2]
[400123072,1767136247484,-500.0,0.00021854,2]
[400123073,1767136247494,-500.0,0.00021874,2]
[400123074,1767136247503,-500.08133129,0.00021917,2]
[400123075,1767136247512,-500.79380713,0.00021917,2]
[400123076,1767136247522,-257.247478,0.00021917,2]
[400123077,1767136247531,-3824.025904,0.00021917,2]
[400123078,1767136247543,-520.91238729,0.00021917,2]
[400123079,1767136247552,-278.66468423,0.00021917,2]
[400123080,1767136247562,-490.84153265,0.00021917,2]
[400123081,1767136247571,-500.0,0.00021917,2]
[400123082,1767136247582,-357.75121892,0.00021917,2]
[400123083,1767136247591,-480.85340029,0.00021917,2]
[400123084,1767136247601,-340.25687684,0.00021917,2]
[400123085,1767136247611,-214.73939159,0.00021917,2]
[400123086,1767136247621,-470.17191108,0.00021917,2]